fUSD/lending_fUSD_20251226
["ID","MTS","AMOUNT","RATE_DAILY","PERIOD"]
[399840237,1766730638073,-150.0,0.00014475,2]
[399840238,1766730638083,-500.0,0.00014475,2]
[399840239,1766730638093,-150.0,0.00014475,2]
[399840240,1766730638103,-150.0,0.00014475,2]
[399840241,1766730638114,-500.0,0.00014502,2]
[399840242,1766730638124,-175.91364612,0.00014502,2]
[399840243,1766730638134,-500.0,0.00014502,2]
[399840244,1766730638145,-150.98746646,0.00014502,2]
[399840245,1766730638155,-175.83818787,0.00014502,2]
[399840246,1766730638166,-500.0,0.00014529,2]
[399840247,1766730638176,-500.0,0.00014529,2]
[399840248,1766730638186,-8795.14387752,0.00014541,2]
[399840257,1766730639903,-991204.85612248,0.00014541,2]
[399840258,1766730639914,-500.0,0.00014557,2]
[399840259,1766730639924,-177.44,0.00014577,2]
[399840260,1766730639934,-500.0,0.00014584,2]
[399840261,1766730639943,-500.0,0.00014612,2]
[399840262,1766730639953,-167.09895004,0.00014637,2]
[399840263,1766730639963,-500.0,0.00014639,2]
[399840264,1766730639972,-68148.3,0.00014641,2]
[399840265,1766730639982,-9999.99,0.00014641,2]
[399840266,1766730639992,-151.0,0.00014641,2]
[399840267,1766730640001,-151.0,0.00014641,2]
[399840268,1766730640011,-151.0,0.00014641,2]
[399840269,1766730640021,-151.0,0.00014641,2]
[399840270,1766730640030,-151.0,0.00014641,2]
[399840271,1766730640040,-151.0,0.00014641,2]
[399840272,1766730640051,-151.0,0.00014641,2]
[399840273,1766730640060,-151.0,0.00014641,2]
[399840274,1766730640070,-151.0,0.00014641,2]
[399840275,1766730640080,-151.0,0.00014641,2]
[399840276,1766730640091,-151.0,0.00014641,2]
[399840277,1766730640100,-151.0,0.00014641,2]
[399840278,1766730640109,-151.0,0.00014641,2]
[399840279,1766730640119,-151.0,0.00014641,2]
[399840280,1766730640129,-151.0,0.00014641,2]
[399840281,1766730640139,-151.0,0.00014641,2]
[399840282,1766730640148,-510.57439861,0.00014649,2]
[399840283,1766730640158,-457.42264736,0.00014649,2]
[399840284,1766730640168,-500.0,0.00014649,2]
[399840285,1766730640177,-500.0,0.00014649,2]
[399840286,1766730640187,-500.0,0.00014649,2]
[399840287,1766730640197,-500.0,0.00014649,2]
[399840288,1766730640207,-500.0,0.00014649,2]
[399840289,1766730640217,-546.74327399,0.00014649,2]
[399840290,1766730640226,-1119.598,0.00014649,2]
[399840291,1766730640236,-168.18799134,0.00014649,2]
[399840292,1766730640246,-500.0,0.00014649,2]
[399840293,1766730640256,-500.0,0.00014649,2]
[399840294,1766730640265,-564.82523099,0.00014649,2]
[399840295,1766730640276,-500.0,0.00014666,2]
[399840296,1766730640285,-500.0,0.00014694,2]
[399840297,1766730640295,-500.0,0.00014721,2]
[399840298,1766730640306,-1867.87942019,0.00014728,2]
[399840299,1766730640315,-500.0,0.00014737,2]
[399840300,1766730640325,-258.98774802,0.00014738,2]
[399840301,1766730640335,-500.0,0.00014749,2]
[399840302,1766730640345,-166.66,0.0001475,2]
[399840303,1766730640354,-500.0,0.00014776,2]
[399840304,1766730640364,-500.0,0.00014803,2]
[399840305,1766730640373,-66475.13902689,0.00014832,2]
[399840306,1766730640383,-166.66,0.000149,2]
[399840307,1766730640392,-154.83,0.00014948,2]
[399840308,1766730640401,-1867.87942019,0.00015,2]
[399840309,1766730640410,-500.0,0.00015011,2]
[399840310,1766730640420,-420.0,0.00015015,2]
[399840311,1766730640430,-166.66,0.00015036,2]
[399840312,1766730640439,-1680.0,0.00015072,2]
[399840313,1766730640448,-168.18799133,0.00015099,2]
[399840314,1766730640457,-512.17224775,0.00015215,2]
[399840315,1766730640467,-151.0,0.00015285,2]
[399840316,1766730640476,-500.0,0.00015285,2]
[399840317,1766730640485,-150.0,0.00015288,2]
[399840318,1766730640495,-150.0,0.00015288,2]
[399840319,1766730640505,-150.0,0.00015288,2]
[399840320,1766730640515,-150.0,0.00015288,2]
[399840321,1766730640524,-150.0,0.00015288,2]
[399840322,1766730640534,-150.0,0.00015288,2]
[399840323,1766730640544,-152.42122212,0.00015288,2]
[399840324,1766730640553,-150.0,0.00015288,2]
[399840325,1766730640563,-150.0,0.00015288,2]
[399840326,1766730640573,-150.0,0.00015288,2]
[399840327,1766730640582,-151.0,0.0001532,2]
[399840328,1766730640593,-150.0,0.00015351,2]
[399840329,1766730640606,-250.0,0.00015356,2]
[399840330,1766730640616,-166.66,0.00015392,2]
[399840331,1766730640626,-150.0,0.00015413,2]
[399840332,1766730640636,-468.18565532,0.0001546,2]
[399840333,1766730640647,-150.0,0.00015476,2]
[399840334,1766730640657,-255.0,0.00015484,2]
[399840335,1766730640668,-150.0,0.0001553,2]
[399840336,1766730640678,-150.0,0.00015539,2]
[399840337,1766730640689,-168.18799133,0.00015549,2]
[399840338,1766730640698,-150.0,0.00015602,2]
[399840339,1766730640708,-150.0,0.00015627,2]
[399840340,1766730640718,-495.90650384,0.00015641,2]
[399840341,1766730640728,-999.0,0.00015663,3]
[399840342,1766730640738,-150.0,0.00015665,2]
[399840343,1766730640747,-1002.09708591,0.00015713,2]
[399840344,1766730640757,-150.0,0.00015728,2]
[399840345,1766730640767,-150.0,0.00015773,2]
[399840346,1766730640776,-150.0,0.00015791,2]
[399840347,1766730640785,-150.0,0.00015854,2]
[399840348,1766730640795,-150.0,0.00015854,2]
[399840349,1766730640804,-150.0,0.00015854,2]
[399840350,1766730640814,-166.66,0.00015884,2]
[399840351,1766730640824,-150.0,0.00015917,2]
[399840352,1766730640834,-800.0,0.00015956,2]
[399840353,1766730640843,-150.0,0.00015967,2]
[399840354,1766730640853,-150.0,0.0001598,2]
[399840355,1766730640863,-168.18799133,0.00016,2]
[399840356,1766730640872,-502.66220405,0.00016,2]
[399840357,1766730640882,-52166.74309642,0.00016,4]
[399840358,1766730640892,-150.0,0.00016016,2]
[399840359,1766730640901,-150.0,0.00016043,2]
[399840360,1766730640911,-119992.5,0.00016048,2]
[399840361,1766730640921,-150.0,0.00016106,2]
[399840362,1766730640931,-6507.64,0.00016116,2]
[399840363,1766730640941,-150.0,0.00016137,2]
[399840364,1766730640951,-150.0,0.00016137,2]
[399840365,1766730640960,-366.03,0.00016149,2]
[399840366,1766730640970,-578.20924308,0.00016149,2]
[399840367,1766730640980,-620.0,0.00016149,2]
[399840368,1766730640990,-500.0,0.00016149,2]
[399840369,1766730641000,-574.12855637,0.00016149,2]
[399840370,1766730641010,-500.0,0.00016149,2]
[399840371,1766730641020,-500.0,0.00016149,2]
[399840372,1766730641030,-500.0,0.00016149,2]
[399840373,1766730641040,-151.0,0.00016149,2]
[399840374,1766730641050,-500.0,0.00016149,2]
[399840375,1766730641061,-500.0,0.00016149,2]
[399840376,1766730641071,-500.0,0.00016149,2]
[399840377,1766730641081,-500.0,0.00016149,2]
[399840378,1766730641091,-500.0,0.00016149,2]
[399840379,1766730641101,-500.0,0.00016149,2]
[399840380,1766730641110,-500.0,0.00016149,2]
[399840381,1766730641120,-322.6107,0.00016149,2]
[399840382,1766730641131,-250.0,0.00016149,2]
[399840383,1766730641140,-260.34840278,0.00016149,2]
[399840384,1766730641150,-200.0,0.00016149,2]
[399840385,1766730641160,-207.4,0.00016149,2]
[399840386,1766730641170,-215.0738,0.00016149,2]
[399840387,1766730641180,-223.0315306,0.00016149,2]
[399840388,1766730641189,-181.00575343,0.00016149,2]
[399840389,1766730641199,-150.0,0.00016168,2]
[399840390,1766730641208,-500.0,0.00016182,2]
[399840391,1766730641219,-3872.14450341,0.00016183,2]
[399840392,1766730641229,-279.92160861,0.00016183,2]
[399840393,1766730641240,-500.40933379,0.00016183,2]
[399840394,1766730641250,-500.0,0.00016183,2]
[399840395,1766730641260,-500.0,0.00016183,2]
[399840396,1766730641270,-500.76420326,0.00016183,2]
[399840397,1766730641281,-500.0,0.00016183,2]
[399840398,1766730641292,-500.0,0.00016183,2]
[399840399,1766730641302,-500.0,0.00016183,2]
[399840400,1766730641312,-590.62865017,0.00016183,2]
[399840401,1766730641322,-331.00488176,0.00016183,2]
[399840402,1766730641331,-160.69712544,0.00016183,2]
[399840403,1766730641341,-500.0,0.00016183,2]
[399840404,1766730641351,-333.75918667,0.00016183,2]
[399840405,1766730641361,-230.98283811,0.00016183,2]
[399840406,1766730641371,-500.0,0.00016183,2]
[399840407,1766730641381,-168.40038853,0.00016183,2]
[399840408,1766730641391,-500.89852069,0.00016183,2]
[399840409,1766730641402,-206.77102158,0.00016183,2]
[399840410,1766730641411,-500.0,0.00016183,2]
[399840411,1766730641421,-200.27562112,0.00016183,2]
[399840412,1766730641431,-501.0445462,0.00016183,2]
[399840413,1766730641441,-500.88737108,0.00016183,2]
[399840414,1766730641451,-5000.0,0.000162,5]
[399840415,1766730641462,-150.0,0.00016231,2]
[399840416,1766730641471,-150.0,0.00016258,2]
[399840417,1766730641481,-150.0,0.00016294,2]
[399840418,1766730641491,-150.0,0.000163,2]
[399840419,1766730641502,-150.0,0.000163,2]
[399840420,1766730641512,-256.0,0.000163,2]
[399840421,1766730641522,-150.64,0.000163,2]
[399840422,1766730641532,-150.0,0.000163,2]
[399840423,1766730641542,-150.0,0.000163,2]
[399840424,1766730641552,-150.0,0.000163,2]
[399840425,1766730641563,-150.0,0.000163,2]
[399840426,1766730641573,-300.0,0.000163,2]
[399840427,1766730641585,-150.0,0.000163,2]
[399840428,1766730641595,-170.78,0.000163,2]
[399840429,1766730641609,-150.0,0.000163,2]
[399840430,1766730641619,-150.0,0.000163,2]
[399840431,1766730641630,-150.0,0.000163,2]
[399840432,1766730641642,-150.0,0.000163,2]
[399840433,1766730641652,-150.0,0.000163,2]
[399840434,1766730641662,-150.0,0.000163,2]
[399840435,1766730641673,-150.0,0.000163,2]
[399840436,1766730641683,-170.78,0.000163,2]
[399840437,1766730641693,-150.0,0.000163,2]
[399840438,1766730641704,-150.0,0.000163,2]
[399840439,1766730641714,-150.0,0.000163,2]
[399840440,1766730641724,-150.0,0.000163,2]
[399840441,1766730641734,-150.0,0.000163,2]
[399840442,1766730641745,-150.0,0.000163,2]
[399840443,1766730641755,-150.0,0.00016307,2]
[399840444,1766730641765,-150.77,0.00016329,2]
[399840445,1766730641775,-174.55,0.00016329,2]
[399840446,1766730641785,-301.31,0.00016329,2]
[399840447,1766730641795,-170.78,0.00016329,2]
[399840448,1766730641806,-170.78,0.00016329,2]
[399840449,1766730641815,-170.78,0.00016329,2]
[399840450,1766730641825,-170.78,0.00016329,2]
[399840451,1766730641836,-1101.28,0.00016329,2]
[399840452,1766730641846,-333.2,0.00016329,2]
[399840453,1766730641855,-1220.37,0.00016329,2]
[399840454,1766730641866,-1220.37,0.00016329,2]
[399840455,1766730641876,-1220.37,0.00016329,2]
[399840456,1766730641887,-1220.37,0.00016329,2]
[399840457,1766730641897,-1220.37,0.00016329,2]
[399840458,1766730641907,-1220.37,0.00016329,2]
[399840459,1766730641917,-150.0,0.00016357,2]
[399840460,1766730641927,-166.66,0.00016376,2]
[399840461,1766730641938,-150.0,0.00016378,2]
[399840462,1766730641948,-170.78,0.00016378,2]
[399840463,1766730641958,-150.0,0.00016378,2]
[399840464,1766730641968,-300.0,0.00016378,2]
[399840465,1766730641977,-150.0,0.00016378,2]
[399840466,1766730641987,-1220.37,0.00016378,2]
[399840467,1766730641997,-300.0,0.00016378,2]
[399840468,1766730642007,-168.0,0.00016406,2]
[399840469,1766730642017,-150.0,0.0001642,2]
[399840470,1766730642027,-150.0,0.0001642,2]
[399840471,1766730642037,-150.0,0.0001642,2]
[399840472,1766730642047,-366.03,0.00016423,2]
[399840473,1766730642057,-293.0,0.00016438,2]
[399840474,1766730642067,-168.18799133,0.0001645,2]
[399840475,1766730642077,-500.0,0.00016455,2]
[399840476,1766730642087,-150.0,0.00016483,2]
[399840477,1766730642097,-150.0,0.00016501,2]
[399840478,1766730642106,-150.0,0.00016546,2]
[399840479,1766730642117,-1630.0,0.00016579,2]
[399840480,1766730642126,-500.0,0.000166,7]
[399840481,1766730642136,-500.0,0.000166,7]
[399840482,1766730642147,-500.0,0.000166,7]
[399840483,1766730642157,-500.0,0.000166,7]
[399840484,1766730642166,-500.0,0.000166,7]
[399840485,1766730642176,-500.0,0.000166,7]
[399840486,1766730642186,-500.0,0.000166,7]
[399840487,1766730642458,-500.0,0.000166,7]
[399840488,1766730642469,-500.0,0.000166,7]
[399840489,1766730642478,-500.0,0.000166,7]
[399840490,1766730642488,-500.0,0.000166,7]
[399840491,1766730642498,-500.0,0.000166,7]
[399840492,1766730642509,-500.0,0.000166,7]
[399840493,1766730642519,-500.0,0.000166,7]
[399840494,1766730642528,-500.0,0.000166,7]
[399840495,1766730642539,-500.0,0.000166,7]
[399840497,1766730642549,-500.0,0.000166,7]
[399840499,1766730642559,-500.0,0.000166,7]
[399840500,1766730642570,-500.0,0.000166,7]
[399840501,1766730642580,-500.0,0.000166,7]
[399840502,1766730642591,-500.0,0.000166,7]
[399840503,1766730642605,-500.0,0.000166,7]
[399840504,1766730642615,-500.0,0.000166,7]
[399840505,1766730642625,-500.0,0.000166,7]
[399840506,1766730642635,-500.0,0.000166,7]
[399840507,1766730642646,-500.0,0.000166,7]
[399840508,1766730642657,-500.0,0.000166,7]
[399840509,1766730642668,-500.0,0.000166,7]
[399840510,1766730642678,-500.0,0.000166,7]
[399840511,1766730642688,-500.0,0.000166,7]
[399840512,1766730642699,-500.0,0.000166,7]
[399840513,1766730642709,-500.0,0.000166,7]
[399840514,1766730642719,-500.0,0.000166,7]
[399840515,1766730642730,-500.0,0.000166,7]
[399840516,1766730642740,-500.0,0.000166,7]
[399840517,1766730642749,-500.0,0.000166,7]
[399840518,1766730642759,-500.0,0.000166,7]
[399840519,1766730642769,-500.0,0.000166,7]
[399840520,1766730642778,-500.0,0.000166,7]
[399840521,1766730642787,-500.0,0.000166,7]
[399840522,1766730642796,-500.0,0.000166,7]
[399840523,1766730642806,-500.0,0.000166,7]
[399840524,1766730642816,-500.0,0.000166,7]
[399840525,1766730642826,-500.0,0.000166,7]
[399840526,1766730642835,-500.0,0.000166,7]
[399840527,1766730642845,-500.0,0.000166,7]
[399840528,1766730642855,-500.0,0.000166,7]
[399840529,1766730642865,-500.0,0.000166,7]
[399840530,1766730642875,-500.0,0.000166,7]
[399840531,1766730642885,-500.0,0.000166,7]
[399840532,1766730642895,-500.0,0.000166,7]
[399840533,1766730642905,-500.0,0.000166,7]
[399840534,1766730642915,-500.0,0.000166,7]
[399840535,1766730642925,-500.0,0.000166,7]
[399840536,1766730642935,-500.0,0.000166,7]
[399840537,1766730642945,-500.0,0.000166,7]
[399840538,1766730642955,-500.0,0.000166,7]
[399840539,1766730642965,-500.0,0.000166,7]
[399840540,1766730642974,-500.0,0.000166,7]
[399840541,1766730642985,-500.0,0.000166,7]
[399840542,1766730642995,-500.0,0.000166,7]
[399840543,1766730643005,-500.0,0.000166,7]
[399840544,1766730643015,-500.0,0.000166,7]
[399840545,1766730643026,-500.0,0.000166,7]
[399840546,1766730643035,-500.0,0.000166,7]
[399840547,1766730643045,-500.0,0.000166,7]
[399840548,1766730643055,-500.0,0.000166,7]
[399840549,1766730643064,-500.0,0.000166,7]
[399840550,1766730643074,-500.0,0.000166,7]
[399840551,1766730643084,-500.0,0.000166,7]
[399840552,1766730643094,-500.0,0.000166,7]
[399840553,1766730643104,-500.0,0.000166,7]
[399840554,1766730643113,-500.0,0.000166,7]
[399840555,1766730643123,-500.0,0.000166,7]
[399840556,1766730643133,-500.0,0.000166,7]
[399840557,1766730643142,-500.0,0.000166,7]
[399840558,1766730643151,-500.0,0.000166,7]
[399840559,1766730643161,-500.0,0.000166,7]
[399840560,1766730643171,-500.0,0.000166,7]
[399840561,1766730643181,-500.0,0.000166,7]
[399840562,1766730643191,-500.0,0.000166,7]
[399840563,1766730643201,-500.0,0.000166,7]
[399840564,1766730643211,-500.0,0.000166,7]
[399840565,1766730643221,-500.0,0.000166,7]
[399840566,1766730643232,-500.0,0.000166,7]
[399840567,1766730643242,-500.0,0.000166,7]
[399840568,1766730643252,-500.0,0.000166,7]
[399840569,1766730643262,-500.0,0.000166,7]
[399840570,1766730643272,-500.0,0.000166,7]
[399840571,1766730643281,-500.0,0.000166,7]
[399840572,1766730643291,-500.0,0.000166,7]
[399840573,1766730643301,-500.0,0.000166,7]
[399840574,1766730643310,-500.0,0.000166,7]
[399840575,1766730643319,-500.0,0.000166,7]
[399840576,1766730643329,-500.0,0.000166,7]
[399840577,1766730643339,-500.0,0.000166,7]
[399840578,1766730643349,-221.86,0.000166,7]
[399840579,1766730643358,-500.0,0.000166,7]
[399840580,1766730643368,-500.0,0.000166,7]
[399840581,1766730643377,-222.24,0.000166,7]
[399840582,1766730643387,-500.0,0.000166,7]
[399840583,1766730643396,-150.0,0.00016609,2]
[399840584,1766730643406,-150.0,0.00016647,2]
[399840585,1766730643416,-670.32096566,0.0001666,2]
[399840586,1766730643426,-150.0,0.00016672,2]
[399840587,1766730643437,-162.0,0.0001668,2]
[399840588,1766730643447,-433.0,0.00016691,2]
[399840589,1766730643458,-1000.0,0.00016692,2]
[399840590,1766730643468,-366.03,0.00016697,2]
[399840591,1766730643478,-595.37131296,0.00016697,2]
[399840592,1766730643488,-168.0,0.00016707,2]
[399840593,1766730643498,-293.0,0.00016712,2]
[399840594,1766730643508,-1000.0,0.00016717,2]
[399840595,1766730643519,-302.53323335,0.00016728,2]
[399840596,1766730643530,-500.85707724,0.00016731,2]
[399840597,1766730643540,-1000.0,0.00016731,2]
[399840598,1766730643551,-516.27997317,0.00016731,2]
[399840599,1766730643561,-913.88399981,0.00016731,2]
[399840600,1766730643572,-1000.0,0.00016731,2]
[399840601,1766730643582,-511.82107275,0.00016731,2]
[399840602,1766730643592,-163.47849716,0.00016731,2]
[399840603,1766730643606,-1000.0,0.00016731,2]
[399840604,1766730643616,-150.0,0.00016735,2]
[399840605,1766730643626,-150.0,0.00016744,2]
[399840606,1766730643636,-150.0,0.00016751,2]
[399840607,1766730643647,-150.0,0.00016798,2]
[399840608,1766730643657,-1000.0,0.000168,2]
[399840609,1766730643667,-1000.0,0.000168,2]
[399840611,1766730643679,-1000.0,0.000168,2]
[399840613,1766730643688,-181.22803543,0.000168,2]
[399840615,1766730643698,-300.0,0.00016812,2]
[399840617,1766730643707,-150.0,0.00016814,2]
[399840619,1766730643719,-1000.0,0.00016818,2]
[399840621,1766730643728,-475.0,0.00016822,2]
[399840623,1766730643738,-300.0,0.00016823,2]
[399840625,1766730643748,-1822.0,0.00016825,2]
[399840627,1766730643758,-1000.0,0.00016838,2]
[399840628,1766730643769,-181.22803541,0.0001685,2]
[399840629,1766730643779,-1822.0,0.00016854,2]
[399840630,1766730643789,-150.0,0.0001686,2]
[399840631,1766730643799,-300.0,0.00016862,2]
[399840632,1766730643809,-200.0,0.00016864,2]
[399840633,1766730643819,-166.66,0.00016867,2]
[399840634,1766730643829,-25000.0,0.00016874,3]
[399840635,1766730643839,-25000.0,0.00016882,3]
[399840636,1766730643850,-25000.0,0.00016891,3]
[399840637,1766730643859,-3732.7662,0.00016895,2]
[399840638,1766730643869,-33512.6718,0.000169,2]
[399840639,1766730643880,-1000.0,0.000169,2]
[399840640,1766730643889,-2141.24482019,0.000169,2]
[399840641,1766730643899,-172.54,0.000169,2]
[399840642,1766730643909,-10000.0,0.000169,2]
[399840643,1766730643919,-25000.0,0.000169,3]
[399840644,1766730643929,-4651.36681776,0.000169,2]
[399840645,1766730643939,-168.18799133,0.000169,2]
[399840646,1766730643949,-197.07566843,0.000169,2]
[399840647,1766730643958,-181.22803541,0.000169,2]
[399840648,1766730643969,-719.04992275,0.000169,2]
[399840649,1766730643979,-2724.0,0.000169,2]
[399840650,1766730643989,-1000.0,0.00016907,2]
[399840651,1766730643999,-1822.0,0.0001692,2]
[399840652,1766730644008,-150.0,0.00016923,2]
[399840653,1766730644019,-1822.0,0.00016935,2]
[399840654,1766730644028,-1822.0,0.00016943,2]
[399840655,1766730644038,-152.0,0.00016953,3]
[399840656,1766730644047,-366.03,0.00016971,2]
[399840657,1766730644057,-150.0,0.00016973,2]
[399840658,1766730644068,-150.0,0.00016973,2]
[399840659,1766730644079,-270.28,0.00016981,2]
[399840660,1766730644088,-293.0,0.00016986,2]
[399840661,1766730644098,-159.10512061,0.00016986,2]
[399840662,1766730644109,-155.15685309,0.00016986,2]
[399840663,1766730644118,-157.38311085,0.00016986,2]
[399840664,1766730644129,-155.98355596,0.00016986,2]
[399840665,1766730644139,-162.26054214,0.00016986,2]
[399840666,1766730644148,-156.76302164,0.00016986,2]
[399840667,1766730644158,-152.57737944,0.00016986,2]
[399840668,1766730644169,-151.77304176,0.00016986,2]
[399840669,1766730644179,-155.05161452,0.00016986,2]
[399840670,1766730644189,-162.55799377,0.00016987,2]
[399840671,1766730644200,-301.96,0.00016994,2]
[399840672,1766730644209,-362.36,0.00016994,2]
[399840673,1766730644219,-150.0,0.00016999,2]
[399840674,1766730644229,-1115.57403938,0.00016999,5]
[399840675,1766730644238,-150.0,0.00016999,2]
[399840676,1766730644247,-500.0,0.00016999,2]
[399840677,1766730644258,-516.96732434,0.00016999,2]
[399840678,1766730644271,-307.66104653,0.00016999,2]
[399840679,1766730644280,-300.0,0.00016999,2]
[399840680,1766730644291,-1228811.3920752,0.00017,2]
[399840681,1766730644541,-3452.85,0.00017,2]
[399840682,1766730644554,-776.42636932,0.00017,2]
[399840683,1766730644566,-1902.07,0.00017,2]
[399840684,1766730644579,-3464.4454591,0.00017,2]
[399840685,1766730644591,-2860.95238278,0.00017,2]
[399840686,1766730644611,-5406.50649121,0.00017,2]
[399840687,1766730644636,-757026.42522446,0.00017,2]
[399840688,1766730644964,-1867.87942019,0.00015271,2]
[399840689,1766730644976,-1220.37,0.00016329,2]
[399840690,1766730644987,-17022.14352909,0.00017,2]
[399840691,1766730645000,-662.76,0.00017,2]
[399840692,1766730645012,-302.05042645,0.00017,2]
[399840693,1766730645143,-25981.31607109,0.00017,2]
[399840695,1766730645784,-16804.09074715,0.00017,2]
[399840696,1766730645797,-1008.24074895,0.00017,2]
[399840697,1766730645845,-510.45741307,0.00017,2]
[399840699,1766730646134,-1782.93,0.00015543,2]
[399840720,1766730824900,594.12069,0.0002,30]
[399840730,1766730876421,200.0,0.00018,25]
[399840979,1766731831873,-326.71333278,0.00014076,2]
[399840980,1766731831953,-520.56194573,0.00014076,2]
[399840983,1766731832184,-272.32272149,0.00014076,2]
[399840985,1766731832195,-200.0,0.0001416,2]
[399840986,1766731832205,-167.09895004,0.00014163,2]
[399840989,1766731832215,-4651.36681776,0.0001424,2]
[399840990,1766731832225,-500.0,0.00014255,2]
[399840993,1766731832235,-300.0,0.00014262,2]
[399840995,1766731832245,-1200.0,0.00014262,2]
[399840996,1766731832254,-195.52476982,0.00014262,2]
[399840999,1766731832264,-546.02986758,0.00014263,2]
[399841042,1766731837940,-500.0,0.00014262,2]
[399841043,1766731837954,-493.91760577,0.00014262,2]
[399841044,1766731837964,-2745.38293319,0.00014263,2]
[399841045,1766731837976,-44473.68,0.00014263,2]
[399841046,1766731837988,-12382.0090856,0.00014263,2]
[399841047,1766731838065,-2526.07203788,0.00014263,2]
[399841048,1766731838078,-17393.74834905,0.00014263,2]
[399841049,1766731838091,-109958.10758566,0.00014263,2]
[399841060,1766731840046,-8894.3368452,0.00014263,2]
[399841061,1766731840174,-97431.7542494,0.00014263,2]
[399841062,1766731840187,-607.11128601,0.00014263,2]
[399841063,1766731840202,-325.929999,0.00014263,2]
[399841064,1766731840214,-841.0,0.00014263,2]
[399841065,1766731840226,-500.0,0.00014263,2]
[399841066,1766731840250,-281.0350005,0.00014263,2]
[399841067,1766731840262,-701093.80276093,0.00014263,2]
[399841068,1766731840472,-380.499,0.00014263,2]
[399841069,1766731840506,-500.0,0.00014282,2]
[399841070,1766731840517,-500.0,0.0001431,2]
[399841071,1766731840527,-500.0,0.00014337,2]
[399841072,1766731840537,-1316.01053617,0.0001434,2]
[399841073,1766731840547,-168.18799134,0.0001434,2]
[399841074,1766731840558,-150.0,0.00014354,2]
[399841075,1766731840568,-151.0,0.00014355,2]
[399841076,1766731840578,-151.0,0.00014355,2]
[399841077,1766731840588,-151.0,0.00014355,2]
[399841078,1766731840598,-151.0,0.00014355,2]
[399841079,1766731840608,-151.0,0.00014355,2]
[399841080,1766731840618,-151.0,0.00014355,2]
[399841081,1766731840628,-151.0,0.00014355,2]
[399841082,1766731840638,-151.0,0.00014355,2]
[399841083,1766731840649,-151.0,0.00014355,2]
[399841084,1766731840659,-151.0,0.00014355,2]
[399841085,1766731840668,-151.0,0.00014355,2]
[399841086,1766731840678,-151.0,0.00014355,2]
[399841087,1766731840688,-151.0,0.00014355,2]
[399841088,1766731840698,-151.0,0.00014355,2]
[399841089,1766731840707,-151.0,0.00014355,2]
[399841090,1766731840717,-151.0,0.00014355,2]
[399841091,1766731840728,-151.0,0.00014355,2]
[399841092,1766731840738,-151.0,0.00014355,2]
[399841093,1766731840747,-151.0,0.00014355,2]
[399841094,1766731840758,-207.4,0.00014355,2]
[399841095,1766731840769,-500.0,0.00014363,2]
[399841096,1766731840779,-500.0,0.00014363,2]